fUST/lending_fUST_20240131
["ID","MTS","AMOUNT","RATE_DAILY","PERIOD"]
[313063256,1706707840639,-151.0,0.00020766,2]
[313063257,1706707840648,-500.0,0.00020766,2]
[313063258,1706707840658,-153.915183,0.00020766,2]
[313063259,1706707840667,-151.0,0.00020766,2]
[313063260,1706707840676,-2185.13,0.00020766,2]
[313063261,1706707840686,-5626.52,0.00020766,2]
[313063262,1706707840696,-2301.26,0.00020766,2]
[313063263,1706707840706,-2030.4,0.00020766,2]
[313063264,1706707840715,-6299.347584,0.00020766,2]
[313063265,1706707840725,-6299.347584,0.00020766,2]
[313063266,1706707840735,-3218.44,0.00020766,2]
[313063267,1706707840744,-500.0,0.00020767,2]
[313063268,1706707840755,-939.59,0.00020767,2]
[313063269,1706707840764,-500.0,0.00020767,2]
[313063270,1706707840774,-500.0,0.00020767,2]
[313063271,1706707840784,-500.0,0.00020767,2]
[313063272,1706707840795,-346.73219295,0.00020767,2]
[313063273,1706707840805,-345.642392,0.00020767,2]
[313063274,1706707840814,-345.642392,0.00020767,2]
[313063275,1706707840823,-500.0,0.00020767,2]
[313063276,1706707840833,-2110.65,0.00020767,2]
[313063277,1706707840842,-500.0,0.00020767,2]
[313063278,1706707840852,-500.0,0.00020767,2]
[313063279,1706707840862,-151.0,0.00020767,2]
[313063280,1706707840871,-500.0,0.00020767,2]
[313063281,1706707840880,-672.54,0.00020767,2]
[313063282,1706707840890,-1343.38,0.00020767,2]
[313063283,1706707840900,-819.45,0.00020767,2]
[313063285,1706707840909,-558.40158265,0.00020767,2]
[313063287,1706707840918,-500.0,0.00020767,2]
[313063289,1706707840927,-500.0,0.00020767,2]
[313063291,1706707840936,-370.23000767,0.00020767,2]
[313063293,1706707840946,-500.0,0.00020767,2]
[313063295,1706707840956,-633.57,0.00020767,2]
[313063297,1706707840966,-500.0,0.00020767,2]
[313063299,1706707840975,-2228.29,0.00020767,2]
[313063301,1706707840985,-500.0,0.00020767,2]
[313063303,1706707840994,-500.0,0.00020767,2]
[313063305,1706707841003,-500.0,0.00020767,2]
[313063306,1706707841013,-500.0,0.00020767,2]
[313063308,1706707841022,-500.0,0.00020767,2]
[313063310,1706707841031,-500.0,0.00020767,2]
[313063312,1706707841040,-936.75,0.00020767,2]
[313063314,1706707841051,-500.0,0.00020767,2]
[313063316,1706707841061,-500.0,0.00020767,2]
[313063318,1706707841070,-153.915183,0.00020767,2]
[313063320,1706707841079,-151.0,0.00020767,2]
[313063322,1706707841089,-153.915183,0.00020767,2]
[313063324,1706707841098,-151.0,0.00020767,2]
[313063326,1706707841107,-500.0,0.00020767,2]
[313063328,1706707841116,-263.64006513,0.00020767,2]
[313063330,1706707841126,-1833.27,0.00020767,2]
[313063332,1706707841135,-4679.96,0.00020767,2]
[313063334,1706707841144,-5713.55,0.00020767,2]
[313063336,1706707841153,-4050.5,0.00020767,2]
[313063338,1706707841162,-2119.07,0.00020767,2]
[313063340,1706707841172,-2682.41,0.00020767,2]
[313063341,1706707841181,-500.0,0.00020767,2]
[313063342,1706707841191,-616.97,0.00020767,2]
[313063343,1706707841201,-500.0,0.00020767,2]
[313063344,1706707841211,-2411.11,0.00020767,2]
[313063345,1706707841221,-500.0,0.00020767,2]
[313063346,1706707841230,-6299.347584,0.00020767,2]
[313063347,1706707841240,-6299.347584,0.00020767,2]
[313063348,1706707841249,-500.0,0.00020767,2]
[313063349,1706707841260,-500.0,0.00020768,2]
[313063350,1706707841269,-3675.66,0.00020768,2]
[313063351,1706707841278,-1426.94,0.00020768,2]
[313063352,1706707841289,-500.0,0.00020768,2]
[313063353,1706707841303,-151.0,0.00020768,2]
[313063354,1706707841312,-6299.347584,0.00020768,2]
[313063355,1706707841325,-6299.347584,0.00020768,2]
[313063356,1706707841334,-500.0,0.00020777,2]
[313063357,1706707841344,-500.0,0.00020777,2]
[313063358,1706707841353,-629.66,0.00020777,2]
[313063359,1706707841363,-500.0,0.00020777,2]
[313063360,1706707841372,-500.0,0.00020777,2]
[313063361,1706707841381,-500.0,0.00020777,2]
[313063362,1706707841391,-500.0,0.00020777,2]
[313063363,1706707841400,-500.0,0.00020777,2]
[313063364,1706707841414,-500.0,0.00020777,2]
[313063365,1706707841424,-500.0,0.00020777,2]
[313063366,1706707841433,-500.0,0.00020777,2]
[313063367,1706707841442,-1621.62,0.00020777,2]
[313063368,1706707841453,-500.0,0.00020777,2]
[313063369,1706707841463,-500.0,0.00020777,2]
[313063370,1706707841472,-265.33849375,0.00020777,2]
[313063371,1706707841483,-729.85,0.00020777,2]
[313063372,1706707841497,-500.0,0.00020777,2]
[313063373,1706707841506,-500.0,0.00020777,2]
[313063374,1706707841516,-500.0,0.00020777,2]
[313063375,1706707841526,-1190.06,0.00020777,2]
[313063376,1706707841621,-500.0,0.00020777,2]
[313063377,1706707841632,-345.642392,0.00020777,2]
[313063378,1706707841641,-345.642392,0.00020777,2]
[313063379,1706707841651,-798.9,0.00020777,2]
[313063380,1706707841661,-500.0,0.00020777,2]
[313063381,1706707841670,-500.0,0.00020777,2]
[313063382,1706707841679,-500.0,0.00020777,2]
[313063383,1706707841688,-500.0,0.00020777,2]
[313063384,1706707841697,-151.0,0.00020777,2]
[313063385,1706707841706,-500.0,0.00020777,2]
[313063386,1706707841716,-500.0,0.00020777,2]
[313063387,1706707841725,-1032.32,0.00020777,2]
[313063388,1706707841734,-4016.29,0.00020777,2]
[313063389,1706707841744,-500.0,0.00020777,2]
[313063390,1706707841753,-979.48,0.00020777,2]
[313063392,1706707841762,-500.0,0.00020777,2]
[313063393,1706707841772,-500.0,0.00020777,2]
[313063394,1706707841781,-500.0,0.00020777,2]
[313063395,1706707841790,-500.0,0.00020777,2]
[313063396,1706707841801,-1820.79,0.00020777,2]
[313063397,1706707841809,-513.49269041,0.00020777,2]
[313063398,1706707841818,-500.0,0.00020777,2]
[313063399,1706707841828,-500.0,0.00020777,2]
[313063400,1706707841837,-12584.25,0.00020777,2]
[313063401,1706707841846,-966.27,0.00020777,2]
[313063402,1706707841855,-1051.66,0.00020777,2]
[313063403,1706707841865,-153.915183,0.00020777,2]
[313063404,1706707841874,-153.915183,0.00020777,2]
[313063405,1706707841883,-151.0,0.00020777,2]
[313063406,1706707841893,-151.0,0.00020777,2]
[313063407,1706707841902,-153.915183,0.00020777,2]
[313063408,1706707841911,-153.915183,0.00020777,2]
[313063409,1706707841921,-151.0,0.00020777,2]
[313063410,1706707841931,-151.0,0.00020777,2]
[313063411,1706707841940,-18013.39,0.00020777,2]
[313063412,1706707841950,-500.0,0.00020777,2]
[313063413,1706707841960,-500.0,0.00020777,2]
[313063414,1706707841969,-581.06,0.00020777,2]
[313063415,1706707841979,-500.0,0.00020777,2]
[313063416,1706707841988,-500.0,0.00020777,2]
[313063417,1706707841997,-500.0,0.00020777,2]
[313063418,1706707842006,-500.0,0.00020777,2]
[313063419,1706707842016,-417.13442877,0.00020777,2]
[313063420,1706707842025,-500.0,0.00020777,2]
[313063421,1706707842034,-500.0,0.00020777,2]
[313063422,1706707842044,-180.27461566,0.00020777,2]
[313063423,1706707842053,-500.0,0.00020777,2]
[313063424,1706707842063,-500.0,0.00020777,2]
[313063425,1706707842072,-6299.347584,0.00020777,2]
[313063426,1706707842082,-500.0,0.00020777,2]
[313063427,1706707842091,-6299.347584,0.00020777,2]
[313063428,1706707842100,-345.642392,0.00020778,2]
[313063429,1706707842109,-345.642392,0.00020778,2]
[313063430,1706707842119,-345.642392,0.00020789,2]
[313063431,1706707842128,-345.642392,0.00020789,2]
[313063432,1706707842137,-151.0,0.00020789,2]
[313063433,1706707842146,-153.915183,0.00020789,2]
[313063434,1706707842155,-151.0,0.00020789,2]
[313063435,1706707842164,-153.915183,0.00020789,2]
[313063436,1706707842173,-180.88,0.00020789,2]
[313063437,1706707842183,-6299.347584,0.00020789,2]
[313063438,1706707842192,-6299.347584,0.00020789,2]
[313063439,1706707842202,-500.0,0.0002079,2]
[313063440,1706707842210,-500.0,0.0002079,2]
[313063441,1706707842219,-2603.4,0.0002079,2]
[313063442,1706707842228,-500.0,0.0002079,2]
[313063443,1706707842237,-500.0,0.0002079,2]
[313063444,1706707842247,-151.0,0.0002079,2]
[313063445,1706707842256,-500.0,0.00020822,2]
[313063446,1706707842266,-500.0,0.00020822,2]
[313063447,1706707842275,-500.0,0.00020822,2]
[313063448,1706707842284,-500.0,0.00020822,2]
[313063449,1706707842293,-500.0,0.00020822,2]
[313063450,1706707842302,-487.65855313,0.00020822,2]
[313063451,1706707842312,-500.0,0.00020822,2]
[313063452,1706707842321,-500.0,0.00020822,2]
[313063453,1706707842330,-500.0,0.00020822,2]
[313063454,1706707842339,-500.0,0.00020822,2]
[313063455,1706707842348,-500.0,0.00020822,2]
[313063456,1706707842357,-620.27498651,0.00020822,2]
[313063457,1706707842367,-500.0,0.00020822,2]
[313063458,1706707842376,-456.16341098,0.00020822,2]
[313063459,1706707842385,-500.0,0.00020822,2]
[313063460,1706707842395,-500.0,0.00020822,2]
[313063461,1706707842408,-500.0,0.00020822,2]
[313063462,1706707842417,-500.0,0.00020822,2]
[313063463,1706707842426,-500.0,0.00020822,2]
[313063464,1706707842436,-500.0,0.00020822,2]
[313063465,1706707842445,-500.0,0.00020822,2]
[313063466,1706707842454,-500.0,0.00020822,2]
[313063467,1706707842464,-500.0,0.00020822,2]
[313063468,1706707842473,-500.0,0.00020822,2]
[313063469,1706707842484,-500.0,0.00020822,2]
[313063470,1706707842493,-500.0,0.00020822,2]
[313063471,1706707842503,-500.0,0.00020822,2]
[313063472,1706707842513,-500.0,0.00020822,2]
[313063473,1706707842522,-500.0,0.00020822,2]
[313063474,1706707842531,-500.0,0.00020822,2]
[313063475,1706707842541,-500.0,0.00020822,2]
[313063476,1706707842552,-500.0,0.00020822,2]
[313063477,1706707842561,-500.0,0.00020822,2]
[313063478,1706707842571,-162.98213789,0.00020822,2]
[313063479,1706707842580,-500.0,0.00020822,2]
[313063480,1706707842589,-500.0,0.00020822,2]
[313063481,1706707842599,-500.0,0.00020822,2]
[313063482,1706707842609,-500.0,0.00020822,2]
[313063483,1706707842618,-500.0,0.00020822,2]
[313063484,1706707842628,-500.0,0.00020822,2]
[313063485,1706707842637,-500.0,0.00020822,2]
[313063486,1706707842646,-500.0,0.00020822,2]
[313063487,1706707842655,-500.0,0.00020822,2]
[313063488,1706707842664,-345.642392,0.00020822,2]
[313063489,1706707842673,-345.642392,0.00020822,2]
[313063490,1706707842682,-153.915183,0.00020822,2]
[313063491,1706707842691,-151.0,0.00020822,2]
[313063492,1706707842700,-153.915183,0.00020822,2]
[313063493,1706707842709,-6299.347584,0.00020822,2]
[313063494,1706707842719,-6299.347591,0.00020822,2]
[313063495,1706707842728,-788.38,0.00020997,2]
[313063496,1706707842738,-11982.9,0.0002101,2]
[313063497,1706707842748,-524.16521628,0.0002101,2]
[313063498,1706707842757,-1819.3,0.0002101,2]
[313063499,1706707842766,-681.78,0.00021032,2]
[313063500,1706707842776,-5798.59,0.00021032,2]
[313063501,1706707842785,-500.0,0.00021032,2]
[313063502,1706707842794,-1242.02,0.00021032,2]
[313063503,1706707842805,-621.96318028,0.00021032,2]
[313063504,1706707842814,-500.0,0.00021032,2]
[313063505,1706707842823,-25076.25,0.0002104,2]
[313063506,1706707842832,-844.07,0.0002104,2]
[313063507,1706707842842,-1146.45,0.0002104,2]
[313063508,1706707842851,-153.915183,0.0002104,2]
[313063509,1706707842860,-500.0,0.0002104,2]
[313063510,1706707842869,-151.0,0.0002104,2]
[313063511,1706707842879,-153.915179,0.0002104,2]
[313063512,1706707842887,-2185.13,0.0002104,2]
[313063513,1706707842896,-5626.52,0.0002104,2]
[313063514,1706707842906,-2301.26,0.0002104,2]
[313063515,1706707842915,-2030.4,0.0002104,2]
[313063516,1706707842924,-3218.44,0.0002104,2]
[313063517,1706707842933,-220.03198858,0.00021041,2]
[313063518,1706707842942,-939.59,0.00021041,2]
[313063519,1706707842951,-500.0,0.00021041,2]
[313063520,1706707842961,-525.23108235,0.00021041,2]
[313063521,1706707842970,-500.0,0.00021041,2]
[313063522,1706707842979,-500.0,0.00021041,2]
[313063523,1706707842989,-2110.65,0.00021041,2]
[313063524,1706707842998,-500.0,0.00021041,2]
[313063525,1706707843007,-151.0,0.00021041,2]
[313063526,1706707843017,-151.0,0.00021041,2]
[313063527,1706707843026,-500.0,0.00021041,2]
[313063528,1706707843036,-672.54,0.00021041,2]
[313063529,1706707843045,-1343.38,0.00021041,2]
[313063530,1706707843055,-819.45,0.00021041,2]
[313063532,1706707843064,-500.0,0.00021041,2]
[313063533,1706707843073,-500.0,0.00021041,2]
[313063534,1706707843082,-500.0,0.00021041,2]
[313063535,1706707843091,-633.57,0.00021041,2]
[313063537,1706707843100,-500.0,0.00021041,2]
[313063539,1706707843109,-2228.29,0.00021041,2]
[313063541,1706707843118,-500.0,0.00021041,2]
[313063543,1706707843127,-500.0,0.00021041,2]
[313063545,1706707843136,-500.0,0.00021041,2]
[313063547,1706707843145,-500.0,0.00021041,2]
[313063549,1706707843154,-514.2721985,0.00021041,2]
[313063551,1706707843163,-500.0,0.00021041,2]
[313063554,1706707843173,-936.75,0.00021041,2]
[313063556,1706707843182,-500.0,0.00021041,2]
[313063570,1706707843260,-500.0,0.00021041,2]
[313063571,1706707843270,-592.29411097,0.00021041,2]
[313063572,1706707843281,-1833.27,0.00021041,2]
[313063573,1706707843290,-4679.96,0.00021041,2]
[313063574,1706707843301,-5713.55,0.00021041,2]
[313063575,1706707843310,-4050.5,0.00021041,2]
[313063576,1706707843318,-2119.07,0.00021041,2]
[313063577,1706707843327,-2682.41,0.00021041,2]
[313063578,1706707843337,-616.97,0.00021041,2]
[313063579,1706707843346,-500.0,0.00021041,2]
[313063581,1706707843355,-2411.11,0.00021041,2]
[313063583,1706707843364,-500.0,0.00021041,2]
[313063585,1706707843373,-500.0,0.00021041,2]
[313063587,1706707843382,-500.0,0.00021042,2]
[313063589,1706707843392,-3675.66,0.00021042,2]
[313063591,1706707843401,-1426.94,0.00021042,2]
[313063593,1706707843414,-500.0,0.00021042,2]
[313063594,1706707843422,-345.642392,0.00021042,2]
[313063595,1706707843433,-345.642392,0.00021042,2]
[313063596,1706707843442,-500.0,0.00021051,2]
[313063597,1706707843452,-500.0,0.00021051,2]
[313063598,1706707843462,-629.66,0.00021051,2]
[313063600,1706707843476,-408.89177542,0.00021051,2]
[313063601,1706707843486,-500.0,0.00021051,2]
[313063602,1706707843495,-500.0,0.00021051,2]
[313063603,1706707843504,-500.0,0.00021051,2]
[313063604,1706707843513,-500.0,0.00021051,2]
[313063605,1706707843523,-500.0,0.00021051,2]
[313063606,1706707843533,-517.80150428,0.00021051,2]
[313063608,1706707843542,-500.0,0.00021051,2]
[313063609,1706707843552,-1621.62,0.00021051,2]
[313063610,1706707843561,-500.0,0.00021051,2]
[313063611,1706707843570,-500.0,0.00021051,2]
[313063612,1706707843580,-729.85,0.00021051,2]
[313063613,1706707843589,-500.0,0.00021051,2]
[313063614,1706707843598,-500.0,0.00021051,2]
[313063616,1706707843608,-500.0,0.00021051,2]
[313063618,1706707843617,-1190.06,0.00021051,2]
[313063619,1706707843626,-500.0,0.00021051,2]
[313063620,1706707843635,-345.642392,0.00021051,2]
[313063621,1706707843644,-345.642392,0.00021051,2]
[313063622,1706707843654,-798.9,0.00021051,2]
[313063623,1706707843663,-500.0,0.00021051,2]
[313063624,1706707843672,-500.0,0.00021051,2]
[313063625,1706707843681,-500.0,0.00021051,2]
[313063626,1706707843691,-500.0,0.00021051,2]
[313063627,1706707843700,-500.0,0.00021051,2]
[313063628,1706707843710,-151.0,0.00021051,2]
[313063629,1706707843719,-500.0,0.00021051,2]
[313063630,1706707843728,-1032.32,0.00021051,2]
[313063631,1706707843737,-4016.29,0.00021051,2]
[313063632,1706707843746,-500.0,0.00021051,2]
[313063633,1706707843755,-979.48,0.00021051,2]
[313063634,1706707843765,-500.0,0.00021051,2]
[313063635,1706707843774,-500.0,0.00021051,2]
[313063636,1706707843783,-500.0,0.00021051,2]
[313063637,1706707843794,-500.0,0.00021051,2]
[313063638,1706707843804,-1820.79,0.00021051,2]
[313063639,1706707843813,-500.0,0.00021051,2]
[313063640,1706707843823,-500.0,0.00021051,2]
[313063641,1706707843833,-10289.73411112,0.00021051,2]
[313063642,1706707844316,-845.24,0.00020726,3]
[313063643,1706707844329,-2294.51588888,0.00021051,2]
[313063644,1706707844341,-966.27,0.00021051,2]
[313063645,1706707844354,-1051.66,0.00021051,2]
[313063646,1706707844368,-4114.06184741,0.00021051,2]
[313063647,1706707844453,-1589.10203622,0.00021051,2]
[313063648,1706707846006,10000.0,0.0002,10]
[313063649,1706707846715,-472.55486556,0.0002049,2]
[313063653,1706707852183,2375.9151164,0.0002,2]
[313063654,1706707853854,10000.0,0.0002,10]
[313063655,1706707862754,10916.0314863,0.00019932,2]
[313063656,1706707865547,10000.0,0.0002,10]
[313063657,1706707866652,500.0,0.00020449,2]
[313063658,1706707872176,5389.76359838,0.0002,2]
[313063659,1706707872540,978.75061234,0.00019154,2]
[313063660,1706707872968,10000.0,0.0002,10]
[313063661,1706707875770,652.36942683,0.0002,2]
[313063662,1706707877308,170.62441558,0.0002,2]
[313063663,1706707883188,1036.65,0.0002,10]
[313063664,1706707891432,500.0,0.00020449,2]
[313063665,1706707913636,500.0,0.00020449,2]
[313063666,1706707929679,883.11,0.00020449,2]
[313063667,1706707933879,500.0,0.00020449,2]
[313063668,1706707961366,500.0,0.00020449,2]
[313063669,1706707967222,500.0,0.00020449,2]
[313063670,1706707973200,500.0,0.00020449,2]
[313063671,1706708028979,500.0,0.00020449,2]
[313063672,1706708045803,524.37619199,0.00020449,2]
[313063673,1706708063131,1556.99,0.00020449,2]
[313063674,1706708063195,295.35270881,0.00020449,2]
[313063675,1706708077731,500.0,0.00020449,2]
[313063676,1706708085832,155.17934871,0.00020449,2]
[313063677,1706708125903,155.0,0.00020449,2]
[313063678,1706708155650,702.2,0.00020449,2]
[313063679,1706708202401,155.00155002,0.00020449,2]
[313063680,1706708206076,155.00155002,0.00020449,2]
[313063681,1706708211481,171.19787537,0.00020449,2]
[313063682,1706708219351,513.4267534,0.00020449,2]
[313063683,1706708248349,323.44904625,0.00020449,2]
[313063684,1706708286582,1144.98,0.00020449,2]
[313063685,1706708291568,529.43423216,0.00020449,2]
[313063686,1706708299925,431.29414339,0.00020449,2]
[313063687,1706708332741,554.28759638,0.00020449,2]
[313063688,1706708336906,307.69575709,0.00020449,2]
[313063689,1706708340124,7971.79381667,0.00020449,2]
[313063690,1706708343003,13850.23851334,0.00020449,2]
[313063691,1706708369351,500.0,0.00020449,2]
[313063692,1706708383869,500.0,0.00020449,2]
[313063693,1706708425922,500.0,0.00020449,2]
[313063694,1706708432624,155.17934871,0.00020449,2]
[313063696,1706708438290,500.0,0.00020449,2]
[313063698,1706708481080,989.31,0.00020449,2]
[313063699,1706708490866,938.66,0.00020449,2]
[313063700,1706708496867,905.79,0.00020449,3]
[313063701,1706708499569,500.0,0.00020449,2]
[313063702,1706708507243,1619.11,0.00020449,3]
[313063703,1706708518503,1349.26,0.00020449,3]
[313063704,1706708520700,500.0,0.00020449,2]
[313063705,1706708529843,1124.38,0.00020449,3]
[313063706,1706708533243,-155.17934871,0.00020455,2]
[313063707,1706708533280,-242.7024983,0.00020456,2]
[313063708,1706708533314,-259.33108004,0.00020457,2]
[313063709,1706708533352,-8167.68437152,0.00020458,2]
[313063710,1706708533388,-251.65740442,0.00020458,2]
[313063711,1706708533430,-286.10469845,0.00020458,2]
[313063712,1706708533465,-171.19131462,0.00020458,2]
[313063713,1706708533500,-384.53538259,0.00020458,2]
[313063714,1706708533533,-4327.68495935,0.00020458,2]
[313063715,1706708533569,-4264.928942,0.00020458,2]
[313063716,1706708543559,164.932497,0.0002036,2]
[313063717,1706708552166,1111.20311703,0.00020449,2]
[313063718,1706708555960,683.3819852,0.00020449,2]
[313063719,1706708556747,885.74,0.00020449,2]
[313063720,1706708558267,939.10783072,0.00020449,2]
[313063721,1706708559327,-936.99,0.0002045,3]
[313063722,1706708559363,-155.08136144,0.00020457,2]
[313063723,1706708559398,-222.77109024,0.00020457,2]
[313063724,1706708559435,-6064.15754832,0.00020458,2]
[313063725,1706708568171,1144.80898006,0.00020449,2]
[313063726,1706708570712,152.41793308,0.00020347,2]
[313063728,1706708573385,833.04375044,0.00020449,2]
[313063731,1706708576275,689.41887614,0.00020449,2]
[313063733,1706708579202,-780.82,0.0002045,3]
[313063735,1706708579236,-650.68,0.0002045,3]
[313063736,1706708579273,-655.24350968,0.00020458,2]
[313063737,1706708579313,-500.0,0.00020458,2]
[313063738,1706708579350,-524.16521628,0.00020458,2]
[313063739,1706708579385,-1667.69,0.00020458,2]
[313063740,1706708579421,-500.0,0.00020458,2]
[313063741,1706708579453,-924.61,0.00020458,2]
[313063742,1706708579487,-1668.50923645,0.00020459,2]
[313063743,1706708579521,-654.61,0.00020459,2]
[313063744,1706708579555,-11345.67203759,0.00020459,2]
[313063761,1706708602210,1018.70225881,0.00020449,2]
[313063763,1706708604834,1996.50298693,0.00020449,2]
[313063764,1706708612798,500.0,0.00020449,2]
[313063765,1706708614620,500.0,0.00020449,2]
[313063766,1706708631523,500.0,0.00020449,2]
[313063767,1706708631735,20928.42010266,0.00020449,2]
[313063768,1706708640615,500.0,0.00020449,2]
[313063769,1706708641446,-911.08,0.0002045,3]
[313063770,1706708641480,-2106.9014739,0.00020456,2]
[313063771,1706708641515,-155.00155002,0.00020457,2]
[313063772,1706708641549,-1294.22321507,0.00020457,2]
[313063773,1706708641584,-1767.4270621,0.00020457,2]
[313063774,1706708641619,-395.7564339,0.00020458,2]
[313063775,1706708641656,-177.56626754,0.00020458,2]
[313063776,1706708641697,-155.29386995,0.00020458,2]
[313063777,1706708641736,-655.74,0.00020458,2]
[313063778,1706708641770,-500.0,0.00020458,2]
[313063779,1706708641805,-5556.98,0.00020458,2]
[313063780,1706708641839,-23998.08,0.00020458,2]
[313063781,1706708641873,-808.9,0.00020458,2]
[313063782,1706708641907,-500.0,0.00020459,2]
[313063783,1706708641943,-1050.92,0.00020459,2]
[313063784,1706708641979,-1138.52,0.00020459,2]
[313063785,1706708642014,-500.0,0.00020459,2]
[313063786,1706708642049,-2003.03,0.00020459,2]
[313063787,1706708642083,-500.0,0.00020459,2]
[313063788,1706708642118,-5157.65,0.00020459,2]
[313063789,1706708642153,-621.96318028,0.00020459,2]
[313063790,1706708642188,-500.0,0.00020459,2]
[313063791,1706708642221,-10.96694724,0.00020459,2]
[313063792,1706708646320,500.0,0.00020449,2]
[313063793,1706708651969,10272.1500177,0.0001948,2]
[313063794,1706708653713,500.0,0.00020449,2]
[313063795,1706708656786,500.0,0.00020449,2]
[313063796,1706708659117,500.0,0.00020449,2]
[313063797,1706708663686,270.942689,0.0001946,2]
[313063798,1706708664423,12995.47353468,0.00020449,2]
[313063799,1706708672283,527.25,0.00020448,3]
[313063800,1706708673772,-632.7,0.0002045,3]
[313063801,1706708673807,-759.24,0.00020451,3]
[313063802,1706708673841,-277.17028051,0.00020457,2]
[313063803,1706708673876,-169.13053665,0.00020457,2]
[313063804,1706708673910,-3396.51812022,0.00020458,2]
[313063805,1706708673943,-500.0,0.00020458,2]
[313063806,1706708673979,-3884.70779132,0.00020458,2]
[313063807,1706708674012,-2106.9014739,0.00020458,2]
[313063808,1706708674045,-1054.9,0.00020458,2]
[313063809,1706708674079,-1142.83,0.00020458,2]
[313063810,1706708674111,-2491.52165634,0.00020458,2]
[313063811,1706708674144,-500.0,0.00020458,2]
[313063812,1706708674182,-19335.38014106,0.00020458,2]
[313063813,1706708678654,500.0,0.00020449,2]
[313063814,1706708678686,500.0,0.00020449,2]
[313063815,1706708683839,439.37,0.00020448,3]
[313063816,1706708694875,366.14,0.00020448,3]
[313063817,1706708705862,-39634.0,0.00020458,2]
[313063818,1706708706085,305.12,0.00020448,3]
[313063819,1706708716494,254.27,0.00020449,3]
[313063820,1706708725343,500.0,0.00020449,2]
[313063821,1706708725618,224.73913167,0.00020449,2]
[313063822,1706708727458,211.89,0.00020448,3]
[313063823,1706708732106,500.0,0.00020449,2]
[313063824,1706708732505,-19892.62116688,0.00020456,2]
[313063825,1706708732539,-2214.37883312,0.00020457,2]
[313063826,1706708737193,4205.9165188,0.00019468,2]
[313063827,1706708738450,176.57,0.00020448,3]
[313063828,1706708744228,500.0,0.00020449,2]
[313063829,1706708747061,-155.35590413,0.00020456,2]
[313063830,1706708747099,-328.54653112,0.00020456,2]
[313063831,1706708747134,-155.7226955,0.00020456,2]
[313063832,1706708747170,-309.91770073,0.00020456,2]
[313063833,1706708747205,-1240.45716852,0.00020457,2]
[313063834,1706708749730,882.89,0.00020448,3]
[313063835,1706708750586,2721.52,0.00020449,2]
[313063836,1706708756671,500.0,0.00020449,2]
[313063837,1706708760972,361.7,0.00020446,3]
[313063838,1706708767930,-179.10169076,0.00020455,2]
[313063839,1706708767969,-221.26638139,0.00020455,2]
[313063840,1706708768008,-166.35364662,0.00020455,2]
[313063841,1706708768047,-155.55930946,0.00020456,2]
[313063842,1706708768085,-129.71897177,0.00020456,2]
[313063843,1706708772574,2902.452424,0.00019468,2]
[313063844,1706708793604,672.0,0.00020446,3]
[313063845,1706708796994,-330.0505798,0.00020454,2]
[313063846,1706708797029,-15642.52238482,0.00020455,2]
[313063847,1706708797065,-18930.40431998,0.00020455,2]